[Event "FIDE Online Steinitz Memorial Open"]
[White "Grischuk, Alexander"]
[Black "Carlsen, Magnus"]
[Site "Internet"]
[Round "6"]
[Annotator "ChessBase"]
[Result "1/2-1/2"]
[Date "2020.05.15"]
[WhiteElo "2765"]
[BlackElo "2887"]
[PlyCount "124"]
[TimeControl "180+2"]

1. d4 Nf6 2. c4 {[%emt 0:0:5]} e6 {[%emt 0:0:4]} 3. Nf3 {[%emt 0:0:2]} d5 {[%emt 0:0:0]} 4. Nc3 {[%emt 0:0:1]} Be7 {[%emt 0:0:1]} 5. Bf4 {[%emt 0:0:0]} 0-0 {[%emt 0:0:1]} 6. e3 {[%emt 0:0:0]} b6 {[%emt 0:0:1]} 7. Bd3 {[%emt 0:0:6]} dxc4 {[%emt 0:0:2]} 8. Bxc4 {[%emt 0:0:0]} Ba6 {[%emt 0:0:0]} 9. Qe2 {[%emt 0:0:3]} Bxc4 {[%emt 0:0:4]} 10. Qxc4 {[%emt 0:0:0]} c5 {[%emt 0:0:2]} 11. dxc5 {[%emt 0:0:0]} Bxc5 {[%emt 0:0:8]} 12. 0-0 {[%emt 0:0:2]
} Nbd7 {[%emt 0:0:7]} 13. Rac1 {[%emt 0:0:20]} Qc8 {[%emt 0:0:0]} 14. Ne5 {[%emt 0:0:9]} Qb7 {[%emt 0:0:7]} 15. Nxd7 {[%emt 0:0:2]} Nxd7 {[%emt 0:0:1]} 16. Rfd1 {[%emt 0:0:14]} Rfc8 {[%emt 0:0:20]} 17. Qe4 {[%emt 0:0:20]
} Qxe4 {[%emt 0:0:1]} 18. Nxe4 {[%emt 0:0:0]} Be7 {[%emt 0:0:0]} 19. g4 {[%emt 0:0:12]} Nf6 {[%emt 0:1:7]} 20. Nxf6+ {[%emt 0:0:1]} Bxf6 {[%emt 0:0:0]} 21. b3 {[%emt 0:0:1]} h6 {[%emt 0:0:9]} 22. Bc7 {[%emt 0:0:13]
} Kf8 {[%emt 0:0:11]} 23. Kg2 {[%emt 0:0:31]} Ke8 {[%emt 0:0:0]} 24. f4 {[%emt 0:0:6]} Bb2 {[%emt 0:0:19]} 25. Rc4 {[%emt 0:0:27]} b5 {[%emt 0:0:5]
} 26. Rc6 {[%emt 0:0:6]} a6 {[%emt 0:0:9]} 27. Rd2 {[%emt 0:0:0]} Ba3 {[%emt 0:0:11]} 28. Rdc2 {[%emt 0:0:7]} Kd7 {[%emt 0:0:1]} 29. R6c3 {[%emt 0:0:1]} Bb4 {[%emt 0:0:1]} 30. Rd3+ {[%emt 0:0:5]} Ke8 {[%emt 0:0:2]
} 31. Rd1 {[%emt 0:0:7]} Ba3 {[%emt 0:0:16]} 32. Rdd2 {[%emt 0:0:5]
} Bb4 {[%emt 0:0:1]} 33. Re2 {[%emt 0:0:6]} f6 {[%emt 0:0:0]} 34. Kf3 {[%emt 0:0:3]} Kd7 {[%emt 0:0:3]} 35. Bb6 {[%emt 0:0:1]} Rxc2 {[%emt 0:0:1]} 36. Rxc2 {[%emt 0:0:1]} Rc8 {[%emt 0:0:1]} 37. Rxc8 {[%emt 0:0:1]
} Kxc8 {[%emt 0:0:0]} 38. f5 {[%emt 0:0:1]} Kd7 {[%emt 0:0:0]} 39. Ke4 {[%emt 0:0:7]} Bd6 {[%emt 0:0:3]} 40. h4 {[%emt 0:0:4]} Kc6 {[%emt 0:0:6]} 41. Bd4 {[%emt 0:0:2]} e5 {[%emt 0:0:1]} 42. Bc3 {[%emt 0:0:0]} b4 {[%emt 0:0:2]} 43. Be1 {[%emt 0:0:3]} a5 {[%emt 0:0:1]} 44. Bg3 {[%emt 0:0:5]} Bc5 {[%emt 0:0:2]} 45. g5 {[%emt 0:0:3]} h5 {[%emt 0:0:0]} 46. g6 {[%emt 0:0:4]} Bd6 {[%emt 0:0:5]} 47. Bf2 {[%emt 0:0:2]} Bc5 {[%emt 0:0:1]} 48. Be1 {[%emt 0:0:3]} Bd6 {[%emt 0:0:1]} 49. Kd3 {[%emt 0:0:3]
} Bc5 {[%emt 0:0:4]} 50. Bd2 {[%emt 0:0:2]} Kb5 {[%emt 0:0:0]} 51. Ke4 {[%emt 0:0:5]} Kc6 {[%emt 0:0:1]} 52. Bc1 {[%emt 0:0:1]} Bf8 {[%emt 0:0:3]} 53. Kd3 {[%emt 0:0:2]} Kb5 {[%emt 0:0:1]} 54. Bb2 {[%emt 0:0:2]
} Bd6 {[%emt 0:0:1]} 55. Ke4 {[%emt 0:0:5]} Kc6 {[%emt 0:0:0]} 56. Kd3 {[%emt 0:0:1]} Kd5 {[%emt 0:0:5]} 57. e4+ {[%emt 0:0:2]} Kc5 {[%emt 0:0:1]} 58. Bc1 {[%emt 0:0:1]} Kb5 {[%emt 0:0:1]} 59. Bh6 {[%emt 0:0:3]
} Bf8 {[%emt 0:0:1]} 60. Bd2 {[%emt 0:0:1]} Bc5 {[%emt 0:0:0]} 61. Bh6 {[%emt 0:0:2]} Bf8 {[%emt 0:0:1]} 62. Bd2 {[%emt 0:0:1]} Bc5 {[%emt 0:0:1]} 1/2-1/2

[Event "FIDE Online Steinitz Memorial Open"]
[White "Bu, Xiangzhi"]
[Black "Dubov, Daniil"]
[Site "Internet"]
[Round "6"]
[Annotator "ChessBase"]
[Result "1-0"]
[Date "2020.05.15"]
[WhiteElo "2760"]
[BlackElo "2720"]
[PlyCount "157"]
[TimeControl "180+2"]

1. Nf3 d5 2. d4 {[%emt 0:0:4]} Nf6 {[%emt 0:0:4]} 3. c4 {[%emt 0:0:1]} e6 {[%emt 0:0:1]} 4. Nc3 {[%emt 0:0:1]} c6 {[%emt 0:0:2]} 5. e3 {[%emt 0:0:0]} Nbd7 {[%emt 0:0:1]} 6. Qc2 {[%emt 0:0:1]} a5 {[%emt 0:0:1]} 7. Be2 {[%emt 0:0:2]
} dxc4 {[%emt 0:0:2]} 8. Bxc4 {[%emt 0:0:2]} b5 {[%emt 0:0:0]} 9. Be2 {[%emt 0:0:1]} Bb7 {[%emt 0:0:1]} 10. 0-0 {[%emt 0:0:1]} Rc8 {[%emt 0:0:3]} 11. Rd1 {[%emt 0:0:6]} b4 {[%emt 0:0:5]} 12. Na4 {[%emt 0:0:0]} c5 {[%emt 0:0:2]} 13. dxc5 {[%emt 0:0:5]} Be4 {[%emt 0:0:14]} 14. Qc4 {[%emt 0:0:6]} Bd5 {[%emt 0:0:4]} 15. Qf4 {[%emt 0:0:21]} Be7 {[%emt 0:0:44]
} 16. b3 {[%emt 0:0:10]} Ne4 {[%emt 0:0:24]} 17. h4 {[%emt 0:0:0]} Bf6 {[%emt 0:0:24]} 18. Rb1 {[%emt 0:0:12]} Nc3 {[%emt 0:0:18]} 19. Nxc3 {[%emt 0:0:3]} bxc3 {[%emt 0:0:0]} 20. Bd3 {[%emt 0:0:8]} Nxc5 {[%emt 0:0:23]
} 21. Bc2 {[%emt 0:0:2]} 0-0 {[%emt 0:0:14]} 22. Ba3 {[%emt 0:0:0]} Qc7 {[%emt 0:0:2]} 23. Qxc7 {[%emt 0:0:2]} Rxc7 {[%emt 0:0:1]} 24. Rbc1 {[%emt 0:0:4]} Rb8 {[%emt 0:0:7]} 25. h5 {[%emt 0:0:4]} h6 {[%emt 0:0:7]
} 26. Nd4 {[%emt 0:0:6]} Be7 {[%emt 0:0:5]} 27. Bxc5 {[%emt 0:0:11]
} Bxc5 {[%emt 0:0:2]} 28. Ne2 {[%emt 0:0:4]} Ba3 {[%emt 0:0:0]} 29. Rb1 {[%emt 0:0:2]} Bb2 {[%emt 0:0:1]} 30. e4 {[%emt 0:0:3]} Bb7 {[%emt 0:0:2]} 31. f3 {[%emt 0:0:1]} Bc6 {[%emt 0:0:8]} 32. Kf2 {[%emt 0:0:0]} Ra7 {[%emt 0:0:1]} 33. Nf4 {[%emt 0:0:3]} a4 {[%emt 0:0:2]} 34. Nd3 {[%emt 0:0:2]} axb3 {[%emt 0:0:2]} 35. axb3 {[%emt 0:0:1]} Ra2 {[%emt 0:0:1]
} 36. Nxb2 {[%emt 0:0:2]} cxb2 {[%emt 0:0:4]} 37. Rd2 {[%emt 0:0:1]
} Rb7 {[%emt 0:0:7]} 38. Bd1 {[%emt 0:0:2]} Rd7 {[%emt 0:0:0]} 39. Rxd7 {[%emt 0:0:2]} Bxd7 {[%emt 0:0:1]} 40. Ke2 {[%emt 0:0:2]} Ra1 {[%emt 0:0:9]} 41. Rxb2 {[%emt 0:0:3]} Bb5+ {[%emt 0:0:1]} 42. Kd2 {[%emt 0:0:1]
} g5 {[%emt 0:0:2]} 43. Be2 {[%emt 0:0:3]} Bc6 {[%emt 0:0:0]} 44. b4 {[%emt 0:0:1]} Kf8 {[%emt 0:0:2]} 45. b5 {[%emt 0:0:1]} Bb7 {[%emt 0:0:1]
} 46. Rc2 {[%emt 0:0:1]} Ke8 {[%emt 0:0:2]} 47. Rc7 {[%emt 0:0:0]} Ra2+ {[%emt 0:0:1]} 48. Ke3 {[%emt 0:0:1]} Ba8 {[%emt 0:0:1]} 49. Bc4 {[%emt 0:0:5]} Ra3+ {[%emt 0:0:7]} 50. Kd4 {[%emt 0:0:1]} Ra4 {[%emt 0:0:1]
} 51. Kc5 {[%emt 0:0:2]} Ra1 {[%emt 0:0:1]} 52. b6 {[%emt 0:0:0]} Kf8 {[%emt 0:0:1]} 53. b7 {[%emt 0:0:2]} Bxb7 {[%emt 0:0:0]} 54. Rxb7 {[%emt 0:0:1]} Rg1 {[%emt 0:0:1]} 55. g4 {[%emt 0:0:2]} Rg3 {[%emt 0:0:3]
} 56. Rb3 {[%emt 0:0:1]} Kg7 {[%emt 0:0:1]} 57. Kd4 {[%emt 0:0:0]} Kf6 {[%emt 0:0:1]} 58. Ke3 {[%emt 0:0:1]} Rg1 {[%emt 0:0:2]} 59. Be2 {[%emt 0:0:3]} Ra1 {[%emt 0:0:2]} 60. Rb5 {[%emt 0:0:1]} Ra3+ {[%emt 0:0:2]
} 61. Bd3 {[%emt 0:0:1]} Ra4 {[%emt 0:0:3]} 62. e5+ {[%emt 0:0:0]} Kg7 {[%emt 0:0:2]} 63. Rb7 {[%emt 0:0:1]} Ra5 {[%emt 0:0:1]} 64. f4 {[%emt 0:0:2]} gxf4+ {[%emt 0:0:2]} 65. Kxf4 {[%emt 0:0:1]} Ra4+ {[%emt 0:0:0]
} 66. Be4 {[%emt 0:0:1]} Kf8 {[%emt 0:0:2]} 67. Rb8+ {[%emt 0:0:2]
} Kg7 {[%emt 0:0:2]} 68. Rd8 {[%emt 0:0:1]} Rb4 {[%emt 0:0:0]} 69. Ke3 {[%emt 0:0:1]} Rb5 {[%emt 0:0:3]} 70. Kf4 {[%emt 0:0:2]} Rb4 {[%emt 0:0:1]} 71. Rd3 {[%emt 0:0:3]} Ra4 {[%emt 0:0:1]} 72. Rc3 {[%emt 0:0:4]
} Rb4 {[%emt 0:0:2]} 73. Rc7 {[%emt 0:0:2]} Ra4 {[%emt 0:0:0]} 74. Ke3 {[%emt 0:0:2]} Ra3+ {[%emt 0:0:2]} 75. Kf2 {[%emt 0:0:5]} Kf8 {[%emt 0:0:4]} 76. g5 {[%emt 0:0:1]} hxg5 {[%emt 0:0:5]} 77. h6 {[%emt 0:0:1]
} Rh3 {[%emt 0:0:3]} 78. Rc8+ {[%emt 0:0:1]} Ke7 {[%emt 0:0:0]} 79. h7 {[%emt 0:0:0]} 1-0

[Event "FIDE Online Steinitz Memorial Open"]
[White "Xiong, Jeffery"]
[Black "Mamedyarov, Shakhriyar"]
[Site "Internet"]
[Round "6"]
[Annotator "ChessBase"]
[Result "0-1"]
[Date "2020.05.15"]
[WhiteElo "2724"]
[BlackElo "2716"]
[PlyCount "50"]
[TimeControl "180+2"]

1. e4 e5 2. Nf3 {[%emt 0:0:4]} Nc6 {[%emt 0:0:3]} 3. d4 {[%emt 0:0:0]} exd4 {[%emt 0:0:2]} 4. Nxd4 {[%emt 0:0:0]} Qf6 {[%emt 0:0:6]} 5. Be3 {[%emt 0:0:5]
} Bc5 {[%emt 0:0:2]} 6. c3 {[%emt 0:0:1]} Nge7 {[%emt 0:0:0]} 7. Bb5 {[%emt 0:0:3]} 0-0 {[%emt 0:0:42]} 8. Nxc6 {[%emt 0:0:40]} dxc6 {[%emt 0:0:2]} 9. Bxc5 {[%emt 0:0:1]} cxb5 {[%emt 0:0:0]} 10. 0-0 {[%emt 0:0:1]
} b6 {[%emt 0:0:10]} 11. Be3 {[%emt 0:0:20]} Bb7 {[%emt 0:0:0]} 12. Nd2 {[%emt 0:0:1]} c5 {[%emt 0:0:5]} 13. a4 {[%emt 0:0:14]} bxa4 {[%emt 0:0:9]} 14. Qxa4 {[%emt 0:0:0]} Rfd8 {[%emt 0:0:9]} 15. Rfd1 {[%emt 0:0:4]
} h6 {[%emt 0:0:2]} 16. Nf1 {[%emt 0:0:28]} Qc6 {[%emt 0:0:0]} 17. Qxc6 {[%emt 0:0:6]} Nxc6 {[%emt 0:0:3]} 18. Ng3 {[%emt 0:0:0]} Na5 {[%emt 0:0:21]} 19. b4 {[%emt 0:0:10]} cxb4 {[%emt 0:0:12]} 20. cxb4 {[%emt 0:0:1]
} Nc4 {[%emt 0:0:1]} 21. Bd4 {[%emt 0:0:16]} a5 {[%emt 0:0:0]} 22. Rac1 {[%emt 0:0:5]} b5 {[%emt 0:0:14]} 23. bxa5 {[%emt 0:0:1]} Rxa5 {[%emt 0:0:4]} 24. Nf5 {[%emt 0:0:20]} Bxe4 {[%emt 0:0:4]} 25. Nxg7 {[%emt 0:0:26]
} Bc2 {[%emt 0:0:1]} 0-1

[Event "FIDE Online Steinitz Memorial Open"]
[White "Korobov, Anton"]
[Black "Le, Quang Liem"]
[Site "Internet"]
[Round "6"]
[Annotator "ChessBase"]
[Result "0-1"]
[Date "2020.05.15"]
[WhiteElo "2667"]
[BlackElo "2690"]
[PlyCount "66"]
[TimeControl "180+2"]

1. d4 Nf6 2. c4 {[%emt 0:0:4]} e6 {[%emt 0:0:3]} 3. Nf3 {[%emt 0:0:1]} b6 {[%emt 0:0:2]} 4. g3 {[%emt 0:0:3]} Bb7 {[%emt 0:0:1]} 5. Bg2 {[%emt 0:0:0]} Be7 {[%emt 0:0:1]} 6. Nc3 {[%emt 0:0:1]} 0-0 {[%emt 0:0:4]} 7. Qc2 {[%emt 0:0:1]} c5 {[%emt 0:0:2]} 8. d5 {[%emt 0:0:6]} exd5 {[%emt 0:0:0]} 9. Ng5 {[%emt 0:0:1]} h6 {[%emt 0:0:1]} 10. h4 {[%emt 0:0:1]} Na6 {[%emt 0:0:1]} 11. cxd5 {[%emt 0:0:15]} Nb4 {[%emt 0:0:24]} 12. Qd1 {[%emt 0:0:7]
} d6 {[%emt 0:0:13]} 13. a3 {[%emt 0:0:6]} Na6 {[%emt 0:0:1]
} 14. Qc2 {[%emt 0:0:13]} Nc7 {[%emt 0:0:29]} 15. Bf4 {[%emt 0:0:11]} b5 {[%emt 0:0:6]
} 16. Rd1 {[%emt 0:0:10]} b4 {[%emt 0:0:13]} 17. Nce4 {[%emt 0:0:0]} Nce8 {[%emt 0:0:1]} 18. Nxf6+ {[%emt 0:0:52]} Nxf6 {[%emt 0:0:0]} 19. Ne4 {[%emt 0:0:2]} Rc8 {[%emt 0:0:17]} 20. Nxf6+ {[%emt 0:0:29]} Bxf6 {[%emt 0:0:0]
} 21. g4 {[%emt 0:0:1]} Bxh4 {[%emt 0:0:33]} 22. Bxd6 {[%emt 0:0:4]
} Bxf2+ {[%emt 0:0:1]} 23. Kxf2 {[%emt 0:0:1]} Qxd6 {[%emt 0:0:0]} 24. Bf3 {[%emt 0:0:4]} Qf6 {[%emt 0:0:26]} 25. Rh5 {[%emt 0:0:2]} Rfd8 {[%emt 0:0:12]} 26. Rg1 {[%emt 0:0:20]} Rxd5 {[%emt 0:0:6]} 27. g5 {[%emt 0:0:10]
} Rxg5 {[%emt 0:0:3]} 28. Rgxg5 {[%emt 0:0:2]} hxg5 {[%emt 0:0:0]} 29. Qh7+ {[%emt 0:0:1]} Kf8 {[%emt 0:0:1]} 30. Rh1 {[%emt 0:0:8]} Rd8 {[%emt 0:0:4]} 31. Qh8+ {[%emt 0:0:3]} Ke7 {[%emt 0:0:2]} 32. Qh2 {[%emt 0:0:0]
} Qd4+ {[%emt 0:0:7]} 33. Kf1 {[%emt 0:0:4]} Bxf3 {[%emt 0:0:0]} 0-1

[Event "FIDE Online Steinitz Memorial Open"]
[White "Anton Guijarro, David"]
[Black "Svidler, Peter"]
[Site "Internet"]
[Round "6"]
[Annotator "ChessBase"]
[Result "0-1"]
[Date "2020.05.15"]
[WhiteElo "2590"]
[BlackElo "2754"]
[PlyCount "120"]
[TimeControl "180+2"]

1. Nf3 g6 2. e4 {[%emt 0:0:7]} Nf6 {[%emt 0:0:5]} 3. Nc3 {[%emt 0:0:6]} d6 {[%emt 0:0:15]} 4. d4 {[%emt 0:0:2]} Bg7 {[%emt 0:0:0]} 5. Be2 {[%emt 0:0:3]
} 0-0 {[%emt 0:0:2]} 6. 0-0 {[%emt 0:0:1]} Nbd7 {[%emt 0:0:0]} 7. e5 {[%emt 0:0:26]} Ne8 {[%emt 0:0:4]} 8. Bf4 {[%emt 0:0:12]} c6 {[%emt 0:0:8]
} 9. Re1 {[%emt 0:0:5]} dxe5 {[%emt 0:0:6]} 10. dxe5 {[%emt 0:0:2]
} Nc7 {[%emt 0:0:1]} 11. Bg3 {[%emt 0:0:29]} Ne6 {[%emt 0:0:0]} 12. a4 {[%emt 0:0:10]} Qa5 {[%emt 0:0:3]} 13. Bc4 {[%emt 0:0:6]} Nb6 {[%emt 0:0:2]} 14. Ba2 {[%emt 0:0:7]} Rd8 {[%emt 0:0:7]} 15. Qe2 {[%emt 0:0:2]
} Nd5 {[%emt 0:0:2]} 16. Nxd5 {[%emt 0:0:24]} cxd5 {[%emt 0:0:0]} 17. Red1 {[%emt 0:0:0]} b6 {[%emt 0:0:28]} 18. c3 {[%emt 0:0:4]} Qc5 {[%emt 0:0:16]} 19. Nd4 {[%emt 0:0:18]} Nxd4 {[%emt 0:0:5]} 20. Rxd4 {[%emt 0:0:1]
} Be6 {[%emt 0:0:26]} 21. Rad1 {[%emt 0:0:3]} h5 {[%emt 0:0:0]} 22. Qb5 {[%emt 0:0:26]} a6 {[%emt 0:0:7]} 23. Qe2 {[%emt 0:0:12]} b5 {[%emt 0:0:1]
} 24. a5 {[%emt 0:0:1]} Qc7 {[%emt 0:0:10]} 25. Bxd5 {[%emt 0:0:0]} Rxd5 {[%emt 0:0:1]} 26. Rxd5 {[%emt 0:0:1]} Bxd5 {[%emt 0:0:1]} 27. Rxd5 {[%emt 0:0:0]} e6 {[%emt 0:0:0]} 28. Rd1 {[%emt 0:0:5]} Qxa5 {[%emt 0:0:1]
} 29. Bh4 {[%emt 0:0:0]} Qa4 {[%emt 0:0:3]} 30. g3 {[%emt 0:0:0]} Bxe5 {[%emt 0:0:3]} 31. Rd7 {[%emt 0:0:7]} Bg7 {[%emt 0:0:22]} 32. Rxf7 {[%emt 0:0:1]} Kxf7 {[%emt 0:0:3]} 33. Qf3+ {[%emt 0:0:1]} Kg8 {[%emt 0:0:1]
} 34. Qxa8+ {[%emt 0:0:0]} Kh7 {[%emt 0:0:0]} 35. Kg2 {[%emt 0:0:6]
} Qa2 {[%emt 0:0:5]} 36. Qb7 {[%emt 0:0:2]} Qd5+ {[%emt 0:0:0]} 37. Qxd5 {[%emt 0:0:1]} exd5 {[%emt 0:0:1]} 38. Kf3 {[%emt 0:0:1]} d4 {[%emt 0:0:4]} 39. cxd4 {[%emt 0:0:3]} Bxd4 {[%emt 0:0:1]} 40. b3 {[%emt 0:0:0]
} a5 {[%emt 0:0:0]} 41. Be7 {[%emt 0:0:2]} Bb2 {[%emt 0:0:0]} 42. Ke2 {[%emt 0:0:2]} a4 {[%emt 0:0:1]} 43. bxa4 {[%emt 0:0:0]} bxa4 {[%emt 0:0:2]} 44. Kd3 {[%emt 0:0:1]} Kg8 {[%emt 0:0:2]} 45. Kc4 {[%emt 0:0:2]
} Kf7 {[%emt 0:0:3]} 46. Bc5 {[%emt 0:0:1]} Ke6 {[%emt 0:0:0]} 47. Kb4 {[%emt 0:0:1]} Kd5 {[%emt 0:0:1]} 48. Be7 {[%emt 0:0:1]} a3 {[%emt 0:0:3]} 49. Kb3 {[%emt 0:0:2]} Ke4 {[%emt 0:0:0]} 50. f4 {[%emt 0:0:0]} Kf3 {[%emt 0:0:2]} 51. Bd6 {[%emt 0:0:2]} Kg2 {[%emt 0:0:4]} 52. h4 {[%emt 0:0:2]} Kf3 {[%emt 0:0:2]} 53. Be5 {[%emt 0:0:2]} Bc1 {[%emt 0:0:0]} 54. Bc7 {[%emt 0:0:2]} Be3 {[%emt 0:0:2]} 55. Kxa3 {[%emt 0:0:2]} Bf2 {[%emt 0:0:0]} 56. Kb3 {[%emt 0:0:1]} Bxg3 {[%emt 0:0:2]} 57. Kc4 {[%emt 0:0:1]
} Bxh4 {[%emt 0:0:1]} 58. Kd5 {[%emt 0:0:4]} Bg3 {[%emt 0:0:0]} 59. Ke6 {[%emt 0:0:8]} h4 {[%emt 0:0:5]} 60. Kf6 {[%emt 0:0:5]} h3 {[%emt 0:0:1]
} 0-1